Cogmind - Beta 13 @@@ ROGUE MODE // 2024.08.04 @ 17:16:13 Player: gigi283 Result: Destroyed by OY-ZZA(R) with Subdweller Laser Performance ------------- Evolutions (0) 0 Regions Visited (2) 400 Robots Destroyed (12) 60 Value Destroyed (480) 480 Prototype IDs (0) 0 Alien Tech Used (0) 0 Bonus (-6) -6 TOTAL SCORE: 934 Bonus ------- Friendly Fire -6 Cogmind --------- Core Integrity 0/250 Matter 94/300 Energy 200/200 System Corruption 0% Temperature Cool (6) Movement Treading (1160) Ox10 Location -10/Subcaves Parts ------- > --- POWER (1) -------- Subdweller Power Source > --- PROPULSION (2) --- Spiked Treads > --- UTILITY (2) ------ Humpback > --- WEAPON (2) ------- Assault Rifle Light Assault Rifle > --- INVENTORY (35) --- Small Storage Unit Subdweller Optics Terrain Scanner Subdweller Machine Gun Multitool Peak State ------------ > --- POWER ------------ Subdweller Power Source > --- PROPULSION ------- Spiked Treads Wheel > --- UTILITY ---------- Small Storage Unit Terrain Scanner > --- WEAPON ----------- Subdweller Beam Cannon Light Assault Rifle > --- INVENTORY -------- Subdweller Optics Light Assault Rifle Multitool [Rating: 10] Favorites ----------- Power Ion Engine Engine Ion Engine Propulsion Light Treads Treads Light Treads Wheel Wheel Utility Small Storage Unit Device Terrain Scanner Storage Small Storage Unit Weapon Light Assault Rifle Energy Cannon Subdweller Beam Cannon Ballistic Gun Light Assault Rifle Ballistic Cannon Battle Cannon Launcher Grenade Launcher Special Weapon Multitool Build | -11 -10 -10 ------- Run | Yrd Mat Sub Slots Evolved . | . . . Power . | . . . Propulsion . | . . . Utility . | . . . Weapon . | . . . Parts Attached 27 | 6 . 21 Power 3 | 1 . 2 Engine 3 | 1 . 2 Core . | . . . Reactor . | . . . Propulsion 5 | 2 . 3 Treads 3 | 2 . 1 Leg . | . . . Wheel 2 | . . 2 Hover . | . . . Flight . | . . . Utility 3 | 1 . 2 Device 1 | . . 1 Storage 2 | 1 . 1 Processor . | . . . Hackware . | . . . Protection . | . . . Artifact . | . . . Weapon 16 | 2 . 14 Energy Gun . | . . . Energy Cannon 1 | . . 1 Ballistic Gun 7 | 2 . 5 Ballistic Cannon 4 | . . 4 Launcher 2 | . . 2 Special Weapon 2 | . . 2 Impact Weapon . | . . . Slashing Weapon . | . . . Piercing Weapon . | . . . Special Melee Weapon . | . . . Unidentified Prototypes . | . . . Parts Lost 9 | . . 9 Power 1 | . . 1 Propulsion 3 | . . 3 Utility . | . . . Weapon 5 | . . 5 Highest Loss Streak 4 | . . 4 To Critical Strikes 1 | . . 1 Average Slot Usage (%) 93 | . 85 94 Engine 13 | . 14 13 Treads 24 | . 28 23 Wheel 3 | . . 4 Device 8 | . . 10 Storage 14 | . 14 14 Energy Cannon 3 | . . 4 Ballistic Gun 13 | . 28 10 Ballistic Cannon 4 | . . 5 Launcher 6 | . . 7 Naked Turns . | . . . Heaviest Build 214 | 12 12 214 Greatest Support 40 | 40 40 40 Greatest Overweight (x) 20 | . . 20 Average Overweight (x) 1 | . . 1 Largest Inventory Capacity 35 | 8 8 35 Average Capacity 14 | 6 8 15 Most Carried 7 | 2 2 7 Average Carried 4 | . 1 4 Final Capacity 35 | 8 8 35 Final Carried 5 | . 2 5 Class Distribution -------------------- 76% | Mutant 23% | Hauler-Mutant Dominant Class ---------------- Mutant | -10/Materials Mutant | -10/Subcaves Resources | -11 -10 -10 ----------- Run | Yrd Mat Sub Matter Collected 847 | 221 39 587 Remotely . | . . . Salvage Created 381 | . . 381 Parts 21 | . . 21 Haulers Intercepted . | . . . Recyclers Shooed . | . . . Parts Field Recycled . | . . . Retrieved Matter . | . . . Parts Self-Destructed . | . . . Prevented . | . . . Kills | -11 -10 -10 ------- Run | Yrd Mat Sub Combat Hostiles Destroyed 12 | . . 12 Guns 3 | . . 3 Cannons 3 | . . 3 AOE 5 | . . 5 Classes Destroyed 2 | . . 2 Artisan 2 | . . 2 Subdweller 12 | . . 12 Best Kill Streak 2 | . . 2 Combat Bots Only 2 | . . 2 Max Kills in Single Turn 1 | . . 1 Gunslinging . | . . . Exploded 1 | . . 1 Melee . | . . . Uniques/NPCs Destroyed . | . . . Combat | -11 -10 -10 -------- Run | Yrd Mat Sub Hostile Shots Fired 86 | . . 86 Missed 23 | . . 23 Damage Taken 1504 | . . 1504 Core 262 | . . 262 Absorbed by Shields . | . . . Core Remaining (%) 100 | 100 . . Volleys Fired 89 | . . 89 Largest 2 | . . 2 Hottest 119 | . . 119 Shots Fired 133 | . . 133 Gun 47 | . . 47 Cannon 42 | . . 42 Launcher 32 | . . 32 Special 12 | . . 12 Kinetic 73 | . . 73 Thermal 28 | . . 28 Explosive 32 | . . 32 Electromagnetic . | . . . Robot Hit Streak 22 | . . 22 Robot Miss Streak 1 | . . 1 Penetration Max . | . . . Secondary Targets . | . . . Shots Hit Robots 77 | . . 77 Core Hits 32 | . . 32 Critical Kills 1 | . . 1 Critical Parts Destroyed . | . . . Critical Strikes 1 | . . 1 Meltdown 1 | . . 1 Melee Attacks . | . . . Impact . | . . . Slashing . | . . . Piercing . | . . . Sneak Attacks . | . . . Combat Hostiles . | . . . Follow-up Attacks . | . . . Damage Inflicted 1770 | . . 1770 Guns 282 | . . 282 Cannons 493 | . . 493 Explosions 940 | . . 940 Melee . | . . . Ramming 3 | . . 3 Kinetic 504 | . . 504 Thermal 323 | . . 323 Explosive 940 | . . 940 Electromagnetic . | . . . Impact . | . . . Slashing . | . . . Piercing . | . . . Highest Corruption . | . . . Average Corruption . | . . . Corruption Purged . | . . . Corruption Blocked . | . . . Overload Shots . | . . . Overflow Damage 2 | . . 2 Projectiles . | . . . Explosions 2 | . . 2 Melee . | . . . Knockbacks 1 | . . 1 Impact . | . . . Kinetic 1 | . . 1 Secondary . | . . . Self-Inflicted Damage 29 | . . 29 Shots 3 | . . 3 Rammed 1 | . . 1 Targets Rammed 1 | . . 1 Kicked . | . . . Crushed . | . . . Highest Temperature 16 | . . 16 Average Temperature 6 | . . 6 Received Heat Transfer 192 | . . 192 Siege Activations . | . . . Robots Corrupted . | . . . Combat Hostiles . | . . . Parts Fried . | . . . Impact Corruptions . | . . . Robots Melted 1 | . . 1 Combat Hostiles 1 | . . 1 Parts Melted 1 | . . 1 Heat Transferred 595 | . . 595 Parts Sabotaged . | . . . Parts Stolen . | . . . Parts Stripped . | . . . Power Chain Reactions . | . . . Alert | -11 -10 -10 ------- Run | Yrd Mat Sub Peak Influence . | . . . Initial . | . . . Average . | . . . Maximum Alert Level . | . . . Low Security (%) 100 | 100 100 . Level 1 . | . . . Level 2 . | . . . Level 3 . | . . . Level 4 . | . . . Level 5 . | . . . High Security . | . . . Max Security . | . . . Squads Dispatched . | . . . Investigation . | . . . Extermination . | . . . Reinforcement . | . . . Assault . | . . . Garrison . | . . . Intercept . | . . . Searches Triggered . | . . . Construction Impeded . | . . . Haulers Reinforced . | . . . Active Scanning Responses . | . . . Cargo Convoy Interrupts . | . . . Stealth | -11 -10 -10 --------- Run | Yrd Mat Sub Distress Signals . | . . . Communications Jammed . | . . . Distress Signals . | . . . Times Spotted 14 | . . 14 Peak Tracking Total 2 | . . 2 Tactical Retreats . | . . . Traps | -11 -10 -10 ------- Run | Yrd Mat Sub Traps Triggered 3 | . . 3 Indirectly . | . . . Trap Hack Attempts . | . . . Triggered . | . . . Disarmed . | . . . Reprogrammed . | . . . Reused . | . . . Traps Extracted . | . . . Installed . | . . . Triggered . | . . . Machines | -11 -10 -10 ---------- Run | Yrd Mat Sub Machines Disabled . | . . . Max in Single Turn . | . . . Machines Repaired . | . . . Machines Dismantled . | . . . Machines Sabotaged . | . . . Overloaded Fab Kills . | . . . Hacking | -11 -10 -10 --------- Run | Yrd Mat Sub Machines Accessed . | . . . Terminals . | . . . Fabricators . | . . . Repair Stations . | . . . Recycling Units . | . . . Scanalyzers . | . . . Garrison Access . | . . . Total Hacks . | . . . Successful . | . . . Failed . | . . . Catastrophic . | . . . Database Lockouts . | . . . Manual . | . . . Terminals . | . . . Fabricators . | . . . Repair Stations . | . . . Recycling Units . | . . . Scanalyzers . | . . . Garrison Access . | . . . Terminal Hacks . | . . . Fabricator Hacks . | . . . Repair Station Hacks . | . . . Recycling Unit Hacks . | . . . Scanalyzer . | . . . Garrison Access Hacks . | . . . Unauthorized Hacks . | . . . Terminals . | . . . Fabricators . | . . . Repair Stations . | . . . Recycling Units . | . . . Scanalyzers . | . . . Garrison Access . | . . . Data Cores Recovered . | . . . Used . | . . . Hacking Detections . | . . . Full Trace Events . | . . . Feedback Events . | . . . Feedback Blocked . | . . . Robot Schematics Acquired . | . . . Robots Built . | . . . Authchips . | . . . Time . | . . . Total Robot Build Rating . | . . . Part Schematics Acquired . | . . . Parts Built . | . . . Authchips . | . . . Time . | . . . Total Part Build Rating . | . . . Parts Repaired . | . . . Time . | . . . Parts Recycled . | . . . Recycled Matter . | . . . Retrieved Matter . | . . . Retrieved Components . | . . . Parts Scanalyzed . | . . . Part Schematics Acquired . | . . . Parts Damaged . | . . . Bothacking | -11 -10 -10 ------------ Run | Yrd Mat Sub Used RIF Installer . | . . . Robots Hacked . | . . . Non-combat . | . . . Combat . | . . . Robot Hacks Applied . | . . . Relay Couplers Released . | . . . Fabnet Peak Effective % . | . . . Robots Rewired . | . . . Allies Hacked . | . . . Hacks Repelled . | . . . Allies | -11 -10 -10 -------- Run | Yrd Mat Sub Total Allies . | . . . Largest Group . | . . . Highest-Rated Group . | . . . Highest-Rated Ally . | . . . Total Orders . | . . . Ally Attacks . | . . . Total Damage . | . . . Kills . | . . . Allies Corrupted . | . . . Allies Melted . | . . . Intel | -11 -10 -10 ------- Run | Yrd Mat Sub Robot Analysis Total . | . . . Derelict Logs Recovered 2 | . . 2 Drone Launches . | . . . Drone Recoveries . | . . . Exploration | -11 -10 -10 ------------- Run | Yrd Mat Sub Turns Passed 3751 | 88 611 3052 Spaces Moved 1459 | 49 80 1330 Core 2 | 2 . . Treads 1394 | 47 80 1267 Legs . | . . . Wheels 63 | . . 63 Hover . | . . . Flight . | . . . Fastest Speed 50 | 50 160 110 Average Speed 204 | 155 160 208 Slowest Speed 1160 | 160 160 1160 Overloaded Moves . | . . . Propulsion Burnouts . | . . . Robots Hopped . | . . . Cave-ins Triggered . | . . . Exploration Rate (%) 27 | 4 16 61 Regions Visited 2 Branch Regions 1 Pre-discovered Areas 3 | . . 3 Known Exits Taken . | . . . Unknown Exits Taken 2 | 1 1 . Scrap Searched 1 | . . 1 Spaces Dug . | . . . Terrain Destroyed 126 | . . 126 Melee . | . . . Projectile 1 | . . 1 AOE 125 | . . 125 Terrain Rammed . | . . . Walls Destroyed . | . . . Machines Disabled . | . . . Actions | -11 -10 -10 --------- Run | Yrd Mat Sub Total 2110 | 61 563 1486 Wait 505 | 1 482 22 Move 1457 | 48 79 1330 Hop . | . . . Pick Up 24 | 6 2 16 Fast Attach . | . . . Attach 21 | 6 . 15 Detach 3 | . . 3 Swap 6 | . . 6 Drop 4 | . . 4 Fire 89 | . . 89 Melee . | . . . Ram . | . . . Kick . | . . . Crush 1 | . . 1 Escape Stasis . | . . . Rewire . | . . . Trap . | . . . Miscellaneous . | . . . Route ------- -11/Scrapyard -10/Materials -10/Subcaves History --------- Turn | Location | Event 2 | -11/Scrapyard | Met Revision 17 9 | -11/Scrapyard | Discovered new exit (range 16) 89 | -11/Scrapyard | Entered Materials 318 | -10/Materials | Build established: Mutant 661 | -10/Materials | Discovered new exit (range 8) 700 | -10/Materials | Entered Subcaves 864 | -10/Subcaves | Learned location of Zion (-6) 1048 | -10/Subcaves | Ambushed by angry Subdweller bent on revenge 1210 | -10/Subcaves | Shifting Twisted Machinery released Sub. Monowheel 1491 | -10/Subcaves | Met a Zionite searching for "candidates" 2085 | -10/Subcaves | Ambushed by Subdweller buried in earth 2109 | -10/Subcaves | Shifting Twisted Machinery released Sub. Laser 2538 | -10/Subcaves | Ambushed by angry Subdweller bent on revenge 2850 | -10/Subcaves | Core integrity fell below 50% 2880 | -10/Subcaves | Lost 4 parts (1p2n1w) 3180 | -10/Subcaves | Build established: Hauler-Mutant 3538 | -10/Subcaves | Core integrity fell below 20% 3752 | -10/Subcaves | Destroyed by OY-ZZA(R) with Subdweller Laser Last Messages --------------- 03549_ Subatomizers dissect the Sub. Power Source. 03557_ TR-LB1(R) destroyed. 03563_ Acquired 49 matter. 03564_ Subatomizers dissect the Sub. Power Source. 03571_ Dropped Lgt. Assault Rifle. 03572_ Acquired Assault Rifle. 03575_ Subatomizers dissect the Sub. Power Source. 03577_ Dropped Broken Sub. Power Source. 03578_ Acquired Sub. Power Source. 03580_ Acquired 50 matter. 03588_ Subatomizers dissect the Sub. Optics. 03591_ Acquired Sub. Machine Gun. 03603_ Subatomizers dissect the Broken Sub. Power Source. 03748_ Critical hit (Destroy). 03748_ Wheel destroyed. [Achievement: Back For More] Map ----- +----------------------------------------------------+ | ???????????????#?#????## ###??????????? | | ????????????????????### #??????????#? | | ?????????????????????# ##????????##?? | | ?????????????????????## ####???? ??#??? | | ??????????????????????## ## ###?? ### | | ????????????????????##?#### #?? | | ??????????????????????????# ### | | ???????????????????####???# | | ????????????????#### #??## | | ?????????????????# "### | | ?????????????????# ""## | | ????????????????##"" "" # ## | | ????????????????#" " "" ## ## ## ### | | ????????????????#"""""" # ### ####### | | ????????????????# """ # ## # # | | ????????????????# """ """"" | | ??????????????### """"" | | ??????????????#"""" ############ ## ! & ! | | ??????????????#""" ##?????????###########&* | | ??????????????# " ##??????????????????### | | ??????????????# #????????????????????# | | ??????????????#### #????????????????????? | | ?????????????????## ###??????????????????? | | ?????????????????## #??????????????????? | | ????????????????## #??????????????????? | | ????????????????# @# ##??????????????????? | | ????????????????## ####???????????????????? | | ????????????????## #?????????????????????? | | ????????????????# ##?????????????????????? | | ????????????????# #??????????????????????? | | ????????????????# #??????????????????????? | | ????????????????## ??????????????????????? | | ????????????????? ??????????????????????? | | ?????????????????# ??????????????????????? | | ?????????????????## ??????????????????????? | | ??????????????????# #?????????????????????? | | ??????????????????# #?????????????????????? | | ??????????????????? ?????????????????????? | | ??????????????????? #?????????????????????? | | ???????????????????RR ?????????????????????? | | ??????????????????? ?????????????????????? | | ??????????????????? ?????????????????????? | | ??????????????????? ?????????????????????? | | ??????????????????? ?????????????????????? | | ???????????????????????????????????????????? | | ???????????????????????????????????????????? | | ???????????????????????????????????????????? | | ???????????????????????????????????????????? | | ???????????????????????????????????????????? | | ???????????????????????????????????????????? | +----------------------------------------------------+ Best States ------------- Heat Dissipation 25 Energy Generation 15 Energy Capacity 250 Matter Stores 300 Matter Capacity 300 Sight Range 16 Terrain Scan Range 14 Terrain Scan Density 10 Evasion (%) 40 Recoil Reduction 2 Item Schematics ----------------- None Robot Schematics ------------------ None Fabricated ------------ Nothing Alien Tech Used ----------------- None Achievements -------------- Back For More Challenges ------------ None Game ------ Seed ZioniteFieldArchive Manual? 0 Play Time 00:23:56 Cumulative 34.8 hours Start 2024.08.04 @ 16:49:20 End 2024.08.04 @ 17:16:13 Sessions 1 Manual Loads 0 Difficulty Rogue Special Mode None Game No. 50 Rogue 50 Adventurer 0 Explorer 0 Win Type - Total 0 Types 0/0/0/0/0/0/0/0/0 Lore% 17 Gallery% 27 Achievement% 23 Wizard Run 0 Options --------- Layout 1 ASCII 0 Keyboard 0 Movement Arrows Keybinds 0 Fullscreen 1 Font 16/SmallcapsGlow Map View 50x40 Zoom Use 0% Tactical HUD 1 Map Filters NONE Filters NONE Steam SD RUN: aa4d06af-3ce1-4745-beb9-f700a9b8164d